[Event "Early-Titled-Tuesday-Blitz-March-05-2024"]
[Site "Chess.com"]
[Date "2024.03.05"]
[Round "9"]
[White "GaiozNigalidze"]
[Black "ChessLebaneseSalah"]
[Result "1-0"]
[WhiteElo "2707"]
[BlackElo "2569"]
[TimeControl "180+1"]
[EndTime "9:47:39 PST"]
[Termination "GaiozNigalidze won by checkmate"]

1. d4 {[%clk 0:02:59.4]} 1... Nf6 {[%clk 0:02:59.2]} 2. c4 {[%clk 0:02:57.1]}
2... e6 {[%clk 0:02:58]} 3. Nc3 {[%clk 0:02:57]} 3... Bb4 {[%clk 0:02:54.8]} 4.
Qb3 {[%clk 0:02:57.1]} 4... Bxc3+ {[%clk 0:02:46.5]} 5. Qxc3 {[%clk 0:02:56.9]}
5... d5 {[%clk 0:02:46.1]} 6. Nf3 {[%clk 0:02:56.3]} 6... O-O {[%clk 0:02:43.4]}
7. Bg5 {[%clk 0:02:51.6]} 7... b6 {[%clk 0:02:36.8]} 8. e3 {[%clk 0:02:31.9]}
8... Bb7 {[%clk 0:02:32.7]} 9. cxd5 {[%clk 0:02:29.6]} 9... Bxd5 {[%clk
0:02:15.6]} 10. Be2 {[%clk 0:02:20.8]} 10... Nbd7 {[%clk 0:02:14.8]} 11. Rc1
{[%clk 0:02:15.3]} 11... c5 {[%clk 0:02:09.7]} 12. b3 {[%clk 0:02:07.1]} 12...
Rc8 {[%clk 0:02:07.5]} 13. Qb2 {[%clk 0:01:58.3]} 13... Bxf3 {[%clk 0:01:52]}
14. Bxf3 {[%clk 0:01:53.1]} 14... cxd4 {[%clk 0:01:51.5]} 15. Rxc8 {[%clk
0:01:44]} 15... Qxc8 {[%clk 0:01:52.4]} 16. exd4 {[%clk 0:01:28.3]} 16... Qa6
{[%clk 0:01:46.1]} 17. Be2 {[%clk 0:01:20.1]} 17... Qa5+ {[%clk 0:01:43.7]} 18.
Bd2 {[%clk 0:01:20.2]} 18... Qf5 {[%clk 0:01:32.2]} 19. O-O {[%clk 0:01:14]}
19... Rc8 {[%clk 0:01:28.3]} 20. Rc1 {[%clk 0:01:11.8]} 20... Rxc1+ {[%clk
0:01:25.3]} 21. Qxc1 {[%clk 0:01:12.7]} 21... h6 {[%clk 0:01:20]} 22. f3 {[%clk
0:01:05.5]} 22... Qd5 {[%clk 0:01:16.6]} 23. Qc8+ {[%clk 0:01:01.6]} 23... Kh7
{[%clk 0:01:16]} 24. Bd3+ {[%clk 0:00:59]} 24... g6 {[%clk 0:01:15.9]} 25. Qc3
{[%clk 0:00:39.9]} 25... e5 {[%clk 0:01:00.8]} 26. Bc4 {[%clk 0:00:34.6]} 26...
Qd6 {[%clk 0:00:43.6]} 27. Qe3 {[%clk 0:00:22.1]} 27... g5 {[%clk 0:00:26.4]}
28. Bxf7 {[%clk 0:00:15.2]} 28... Kg7 {[%clk 0:00:19.3]} 29. dxe5 {[%clk
0:00:11.2]} 29... Nxe5 {[%clk 0:00:20.2]} 30. Bc4 {[%clk 0:00:10.1]} 30... a5
{[%clk 0:00:14.7]} 31. Be2 {[%clk 0:00:07.7]} 31... Nd5 {[%clk 0:00:11.7]} 32.
Qd4 {[%clk 0:00:06.5]} 32... Qc5 {[%clk 0:00:11]} 33. Qxc5 {[%clk 0:00:05.6]}
33... bxc5 {[%clk 0:00:11.9]} 34. Bxa5 {[%clk 0:00:05.6]} 34... Nf4 {[%clk
0:00:12.6]} 35. Bf1 {[%clk 0:00:05.6]} 35... Kf7 {[%clk 0:00:12.3]} 36. Bc3
{[%clk 0:00:05.8]} 36... Nd7 {[%clk 0:00:12.4]} 37. g3 {[%clk 0:00:06]} 37...
Ng6 {[%clk 0:00:11.1]} 38. Kf2 {[%clk 0:00:05.9]} 38... Ke7 {[%clk 0:00:10.8]}
39. Bc4 {[%clk 0:00:05.7]} 39... Kd6 {[%clk 0:00:10.3]} 40. a4 {[%clk
0:00:05.7]} 40... Ne7 {[%clk 0:00:09.6]} 41. Bg7 {[%clk 0:00:05.6]} 41... Nc6
{[%clk 0:00:10.5]} 42. Bxh6 {[%clk 0:00:05.6]} 42... Nde5 {[%clk 0:00:09.6]} 43.
Bxg5 {[%clk 0:00:05.2]} 43... Nxc4 {[%clk 0:00:10]} 44. bxc4 {[%clk 0:00:05]}
44... Na5 {[%clk 0:00:10.9]} 45. h4 {[%clk 0:00:03.8]} 45... Nxc4 {[%clk
0:00:11.5]} 46. h5 {[%clk 0:00:04.4]} 46... Ke6 {[%clk 0:00:11.4]} 47. h6 {[%clk
0:00:04.7]} 47... Kf7 {[%clk 0:00:11.5]} 48. Ke2 {[%clk 0:00:04.4]} 48... Kg6
{[%clk 0:00:12]} 49. Bc1 {[%clk 0:00:04.3]} 49... Ne5 {[%clk 0:00:11.7]} 50. a5
{[%clk 0:00:03.8]} 50... c4 {[%clk 0:00:11.5]} 51. a6 {[%clk 0:00:04.1]} 51...
Nc6 {[%clk 0:00:11.9]} 52. g4 {[%clk 0:00:04.3]} 52... Kh7 {[%clk 0:00:11.8]}
53. g5 {[%clk 0:00:04.6]} 53... Kg6 {[%clk 0:00:12.7]} 54. Kd2 {[%clk
0:00:04.5]} 54... Kh7 {[%clk 0:00:09]} 55. Kc2 {[%clk 0:00:04.8]} 55... Nb4+
{[%clk 0:00:08.1]} 56. Kc3 {[%clk 0:00:05.4]} 56... Nxa6 {[%clk 0:00:09]} 57.
Kxc4 {[%clk 0:00:05.9]} 57... Nc7 {[%clk 0:00:09.8]} 58. Kd4 {[%clk 0:00:06.3]}
58... Ne6+ {[%clk 0:00:09.4]} 59. Ke5 {[%clk 0:00:06.9]} 59... Nf8 {[%clk
0:00:10.1]} 60. f4 {[%clk 0:00:07.5]} 60... Ng6+ {[%clk 0:00:09.1]} 61. Kf6
{[%clk 0:00:08]} 61... Nh4 {[%clk 0:00:07.7]} 62. f5 {[%clk 0:00:08.3]} 62...
Kg8 {[%clk 0:00:07]} 63. g6 {[%clk 0:00:08.7]} 63... Nf3 {[%clk 0:00:05.7]} 64.
Bb2 {[%clk 0:00:08.6]} 64... Nd2 {[%clk 0:00:02.9]} 65. h7+ {[%clk 0:00:08.9]}
65... Kh8 {[%clk 0:00:02.1]} 66. Kf7# {[%clk 0:00:09.3]} 1-0

[Event "Early-Titled-Tuesday-Blitz-March-05-2024"]
[Site "Chess.com"]
[Date "2024.03.05"]
[Round "9"]
[White "mbchess97"]
[Black "mfschulz"]
[Result "1-0"]
[WhiteElo "2510"]
[BlackElo "2313"]
[TimeControl "180+1"]
[EndTime "9:47:39 PST"]
[Termination "mbchess97 won on time"]

1. c4 {[%clk 0:03:00.9]} 1... e5 {[%clk 0:02:59.2]} 2. g3 {[%clk 0:03:01]} 2...
Nf6 {[%clk 0:02:59.3]} 3. Bg2 {[%clk 0:03:01.4]} 3... d5 {[%clk 0:02:59.5]} 4.
cxd5 {[%clk 0:03:01.2]} 4... Nxd5 {[%clk 0:02:59.8]} 5. Nf3 {[%clk 0:03:01.4]}
5... Nc6 {[%clk 0:02:59.3]} 6. Nc3 {[%clk 0:02:59.1]} 6... Nb6 {[%clk 0:02:59]}
7. O-O {[%clk 0:02:56.8]} 7... Be7 {[%clk 0:02:58.9]} 8. a4 {[%clk 0:02:55.2]}
8... a5 {[%clk 0:02:57.3]} 9. d3 {[%clk 0:02:54.1]} 9... O-O {[%clk 0:02:57]}
10. Be3 {[%clk 0:02:53.8]} 10... Be6 {[%clk 0:02:54.3]} 11. Rc1 {[%clk
0:02:40.2]} 11... f5 {[%clk 0:02:52.8]} 12. Nb5 {[%clk 0:02:30.5]} 12... f4
{[%clk 0:02:42.7]} 13. Bc5 {[%clk 0:02:22.4]} 13... Bd5 {[%clk 0:02:30.4]} 14.
e4 {[%clk 0:01:57.4]} 14... fxe3 {[%clk 0:02:22.9]} 15. fxe3 {[%clk 0:01:55.7]}
15... Rf7 {[%clk 0:02:16.4]} 16. e4 {[%clk 0:01:29.5]} 16... Be6 {[%clk
0:02:03.1]} 17. d4 {[%clk 0:01:28.5]} 17... exd4 {[%clk 0:01:51.8]} 18. Nfxd4
{[%clk 0:01:21.8]} 18... Rxf1+ {[%clk 0:01:49.9]} 19. Bxf1 {[%clk 0:01:14.7]}
19... Nxd4 {[%clk 0:01:46.4]} 20. Nxd4 {[%clk 0:01:13.4]} 20... Bxc5 {[%clk
0:01:29.8]} 21. Rxc5 {[%clk 0:01:14.3]} 21... Qd6 {[%clk 0:01:23.6]} 22. Rc1
{[%clk 0:00:33.3]} 22... Rf8 {[%clk 0:01:16]} 23. Nxe6 {[%clk 0:00:30.8]} 23...
Qxe6 {[%clk 0:01:16.1]} 24. Rxc7 {[%clk 0:00:28.1]} 24... Qxe4 {[%clk
0:01:12.8]} 25. Bg2 {[%clk 0:00:22.5]} 25... Qe3+ {[%clk 0:01:07.6]} 26. Kh1
{[%clk 0:00:22.8]} 26... Nxa4 {[%clk 0:01:02.4]} 27. b3 {[%clk 0:00:20.7]} 27...
Nc3 {[%clk 0:01:00.1]} 28. Qa1 {[%clk 0:00:17.6]} 28... Qe5 {[%clk 0:00:33.1]}
29. Qxc3 {[%clk 0:00:15]} 29... Qxc3 {[%clk 0:00:33]} 30. Rxc3 {[%clk
0:00:14.6]} 30... b5 {[%clk 0:00:33.1]} 31. Kg1 {[%clk 0:00:13.9]} 31... Rd8
{[%clk 0:00:29]} 32. Rc5 {[%clk 0:00:13.6]} 32... a4 {[%clk 0:00:28.3]} 33. bxa4
{[%clk 0:00:13.5]} 33... bxa4 {[%clk 0:00:28.2]} 34. Rc2 {[%clk 0:00:13.2]}
34... Rd3 {[%clk 0:00:24.5]} 35. Ra2 {[%clk 0:00:12.9]} 35... a3 {[%clk
0:00:24.6]} 36. Kf2 {[%clk 0:00:13]} 36... Kf8 {[%clk 0:00:21.2]} 37. Ke2 {[%clk
0:00:13]} 37... Rb3 {[%clk 0:00:21.4]} 38. Bd5 {[%clk 0:00:13]} 38... Rb2+
{[%clk 0:00:21.5]} 39. Kd3 {[%clk 0:00:12.8]} 39... Rxa2 {[%clk 0:00:19.2]} 40.
Bxa2 {[%clk 0:00:12.3]} 40... Ke7 {[%clk 0:00:17.3]} 41. Ke4 {[%clk 0:00:11.8]}
41... Kf6 {[%clk 0:00:17.4]} 42. Kf4 {[%clk 0:00:12]} 42... h5 {[%clk
0:00:16.4]} 43. h4 {[%clk 0:00:11.3]} 43... g6 {[%clk 0:00:14.7]} 44. Bb3 {[%clk
0:00:10.7]} 44... Kg7 {[%clk 0:00:10.4]} 45. Kg5 {[%clk 0:00:11]} 45... Kh7
{[%clk 0:00:09.5]} 46. Kf6 {[%clk 0:00:11.3]} 46... Kh6 {[%clk 0:00:09.3]} 47.
Ba2 {[%clk 0:00:10.4]} 47... Kh7 {[%clk 0:00:08.4]} 48. Bb1 {[%clk 0:00:09]}
48... Kh6 {[%clk 0:00:08.7]} 49. Ba2 {[%clk 0:00:08.8]} 49... Kh7 {[%clk
0:00:08.8]} 50. Be6 {[%clk 0:00:08.8]} 50... Kh6 {[%clk 0:00:08.5]} 51. Bf7
{[%clk 0:00:09]} 51... Kh7 {[%clk 0:00:02.1]} 52. Bxg6+ {[%clk 0:00:09.2]} 52...
Kh6 {[%clk 0:00:02.4]} 53. Bb1 {[%clk 0:00:09]} 53... a2 {[%clk 0:00:01.4]} 54.
Bxa2 {[%clk 0:00:08.9]} 54... Kh7 {[%clk 0:00:01.6]} 55. Kg5 {[%clk 0:00:09.3]}
55... Kg7 {[%clk 0:00:01.9]} 56. Kxh5 {[%clk 0:00:09.7]} 56... Kh7 {[%clk
0:00:02]} 57. g4 {[%clk 0:00:10.6]} 57... Kg7 {[%clk 0:00:02.2]} 58. g5 {[%clk
0:00:10.4]} 58... Kh7 {[%clk 0:00:02.6]} 59. g6+ {[%clk 0:00:10.7]} 59... Kg7
{[%clk 0:00:02.9]} 60. Kg5 {[%clk 0:00:10]} 60... Kh8 {[%clk 0:00:02.8]} 61. Bb1
{[%clk 0:00:09.8]} 61... Kg7 {[%clk 0:00:02.1]} 62. h5 {[%clk 0:00:10.1]} 62...
Kh8 {[%clk 0:00:02.4]} 63. h6 {[%clk 0:00:10]} 63... Kg8 {[%clk 0:00:02.8]} 64.
Ba2+ {[%clk 0:00:09.6]} 64... Kh8 {[%clk 0:00:02.6]} 65. g7+ {[%clk 0:00:10.1]}
1-0

[Event "Early-Titled-Tuesday-Blitz-March-05-2024"]
[Site "Chess.com"]
[Date "2024.03.05"]
[Round "9"]
[White "Herzog2012"]
[Black "Hui_Li_Macau"]
[Result "1-0"]
[WhiteElo "2511"]
[BlackElo "2388"]
[TimeControl "180+1"]
[EndTime "9:47:47 PST"]
[Termination "Herzog2012 won by resignation"]

1. e4 {[%clk 0:03:00.9]} 1... e5 {[%clk 0:02:59.9]} 2. Nf3 {[%clk 0:03:00.7]}
2... Nf6 {[%clk 0:03:00.4]} 3. Nxe5 {[%clk 0:03:00.4]} 3... d6 {[%clk
0:03:00.8]} 4. Nf3 {[%clk 0:03:00.1]} 4... Nxe4 {[%clk 0:03:01.1]} 5. Nc3 {[%clk
0:02:58.8]} 5... Nxc3 {[%clk 0:03:01]} 6. dxc3 {[%clk 0:02:59.7]} 6... Be7
{[%clk 0:03:01.9]} 7. Be3 {[%clk 0:02:59.5]} 7... Nc6 {[%clk 0:03:02.8]} 8. Qd2
{[%clk 0:02:59.3]} 8... Be6 {[%clk 0:02:54]} 9. O-O-O {[%clk 0:02:56.1]} 9...
Qd7 {[%clk 0:02:53.9]} 10. Nd4 {[%clk 0:02:34.8]} 10... Nxd4 {[%clk 0:02:53.3]}
11. cxd4 {[%clk 0:02:34.7]} 11... d5 {[%clk 0:02:53]} 12. Bd3 {[%clk 0:02:31.5]}
12... O-O {[%clk 0:02:41.2]} 13. h4 {[%clk 0:02:28.4]} 13... Bf5 {[%clk
0:02:40.2]} 14. h5 {[%clk 0:02:25.3]} 14... Bf6 {[%clk 0:02:35.4]} 15. f3 {[%clk
0:02:20.9]} 15... Rfe8 {[%clk 0:02:24.9]} 16. g4 {[%clk 0:02:06.8]} 16... Bxd3
{[%clk 0:02:24.4]} 17. Qxd3 {[%clk 0:02:07]} 17... Qe7 {[%clk 0:02:20.5]} 18.
Rde1 {[%clk 0:01:58.8]} 18... h6 {[%clk 0:02:00.5]} 19. Qf5 {[%clk 0:01:29.2]}
19... Qe6 {[%clk 0:01:51.4]} 20. Qxe6 {[%clk 0:01:27.2]} 20... Rxe6 {[%clk
0:01:49.7]} 21. Bf4 {[%clk 0:01:25.2]} 21... Rxe1+ {[%clk 0:01:31.1]} 22. Rxe1
{[%clk 0:01:23.9]} 22... c6 {[%clk 0:01:30.9]} 23. c3 {[%clk 0:01:22.7]} 23...
Kf8 {[%clk 0:01:23.6]} 24. Bd6+ {[%clk 0:01:22.4]} 24... Kg8 {[%clk 0:01:23.4]}
25. Kd2 {[%clk 0:01:08.8]} 25... Rd8 {[%clk 0:01:23.1]} 26. Be7 {[%clk
0:01:08.3]} 26... Rd7 {[%clk 0:01:06.9]} 27. Bxf6 {[%clk 0:01:06.1]} 27... gxf6
{[%clk 0:01:07.8]} 28. Re8+ {[%clk 0:01:06.4]} 28... Kg7 {[%clk 0:01:08]} 29.
Ke3 {[%clk 0:01:07.1]} 29... f5 {[%clk 0:00:54.7]} 30. gxf5 {[%clk 0:01:04.5]}
30... Kf6 {[%clk 0:00:55]} 31. Kf4 {[%clk 0:01:03.9]} 31... b6 {[%clk
0:00:48.2]} 32. Rh8 {[%clk 0:00:56.5]} 32... Kg7 {[%clk 0:00:47.8]} 33. Rc8
{[%clk 0:00:57.1]} 33... c5 {[%clk 0:00:39.2]} 34. dxc5 {[%clk 0:00:47.7]} 34...
bxc5 {[%clk 0:00:40.1]} 35. Rxc5 {[%clk 0:00:46.1]} 35... d4 {[%clk 0:00:40.3]}
36. cxd4 {[%clk 0:00:43.5]} 36... Rxd4+ {[%clk 0:00:41.2]} 37. Ke5 {[%clk
0:00:43.7]} 37... Rd2 {[%clk 0:00:28.2]} 38. f6+ {[%clk 0:00:40.3]} 38... Kg8
{[%clk 0:00:19.4]} 39. Rc8+ {[%clk 0:00:38.8]} 39... Kh7 {[%clk 0:00:19.6]} 40.
Rc7 {[%clk 0:00:38.1]} 40... Rxb2 {[%clk 0:00:19.8]} 41. Rxf7+ {[%clk
0:00:36.8]} 41... Kg8 {[%clk 0:00:20.1]} 42. Rxa7 {[%clk 0:00:36.8]} 42... Kf8
{[%clk 0:00:17]} 43. Ke6 {[%clk 0:00:34.6]} 43... Rb6+ {[%clk 0:00:16.9]} 44.
Kf5 {[%clk 0:00:35.3]} 44... Rb2 {[%clk 0:00:12.6]} 45. a4 {[%clk 0:00:29.8]}
45... Rh2 {[%clk 0:00:10.9]} 46. Kg6 {[%clk 0:00:29.8]} 46... Rg2+ {[%clk
0:00:11.2]} 47. Kxh6 {[%clk 0:00:29.6]} 47... Rg3 {[%clk 0:00:10.8]} 48. a5
{[%clk 0:00:23.8]} 48... Rxf3 {[%clk 0:00:10.8]} 49. Kg5 {[%clk 0:00:24.5]}
49... Rg3+ {[%clk 0:00:10.3]} 50. Kf4 {[%clk 0:00:24.9]} 50... Rh3 {[%clk
0:00:08.3]} 51. Kg4 {[%clk 0:00:25.1]} 51... Rh1 {[%clk 0:00:08.7]} 52. a6
{[%clk 0:00:19.9]} 52... Rg1+ {[%clk 0:00:08.9]} 53. Kf5 {[%clk 0:00:18.8]}
53... Rf1+ {[%clk 0:00:09]} 54. Kg6 {[%clk 0:00:19]} 54... Rg1+ {[%clk
0:00:09.4]} 55. Kf5 {[%clk 0:00:14.2]} 55... Rf1+ {[%clk 0:00:09.5]} 56. Ke5
{[%clk 0:00:13.8]} 56... Rh1 {[%clk 0:00:08.1]} 57. Rh7 {[%clk 0:00:12.3]} 57...
Re1+ {[%clk 0:00:04.8]} 58. Kd4 {[%clk 0:00:10.2]} 58... Rd1+ {[%clk 0:00:04.9]}
59. Kc3 {[%clk 0:00:09.7]} 59... Ra1 {[%clk 0:00:04.9]} 60. a7 {[%clk
0:00:09.5]} 60... Kg8 {[%clk 0:00:05.4]} 61. Rb7 {[%clk 0:00:09.6]} 1-0

[Event "Early-Titled-Tuesday-Blitz-March-05-2024"]
[Site "Chess.com"]
[Date "2024.03.05"]
[Round "9"]
[White "andrzej"]
[Black "carloseduar100"]
[Result "0-1"]
[WhiteElo "2511"]
[BlackElo "2376"]
[TimeControl "180+1"]
[EndTime "9:47:54 PST"]
[Termination "carloseduar100 won on time"]

1. e4 {[%clk 0:03:00.9]} 1... e6 {[%clk 0:02:32.5]} 2. d4 {[%clk 0:02:59.9]}
2... d5 {[%clk 0:02:32.5]} 3. Nc3 {[%clk 0:02:59.2]} 3... Nf6 {[%clk 0:02:32]}
4. e5 {[%clk 0:02:59.3]} 4... Nfd7 {[%clk 0:02:32.1]} 5. f4 {[%clk 0:03:00]}
5... c5 {[%clk 0:02:32.7]} 6. Nf3 {[%clk 0:03:00.6]} 6... Nc6 {[%clk 0:02:31.9]}
7. Be3 {[%clk 0:03:01.2]} 7... Qb6 {[%clk 0:02:32.3]} 8. Na4 {[%clk 0:03:00.8]}
8... Qc7 {[%clk 0:02:31.9]} 9. Nxc5 {[%clk 0:02:59.6]} 9... Nxd4 {[%clk
0:02:30.9]} 10. Nxd4 {[%clk 0:02:40.1]} 10... Bxc5 {[%clk 0:02:28.7]} 11. Bd3
{[%clk 0:02:33.8]} 11... g6 {[%clk 0:02:28.3]} 12. O-O {[%clk 0:02:32.1]} 12...
Qb6 {[%clk 0:02:27.3]} 13. Bb5 {[%clk 0:02:22.1]} 13... a6 {[%clk 0:02:19.4]}
14. Bxd7+ {[%clk 0:02:17.9]} 14... Bxd7 {[%clk 0:02:20.3]} 15. Rb1 {[%clk
0:02:12.4]} 15... Rc8 {[%clk 0:02:19.8]} 16. b4 {[%clk 0:02:08.6]} 16... Bxd4
{[%clk 0:02:17.1]} 17. Bxd4 {[%clk 0:02:08.8]} 17... Qc7 {[%clk 0:02:17.6]} 18.
c3 {[%clk 0:02:03.9]} 18... O-O {[%clk 0:02:14.4]} 19. Qe1 {[%clk 0:02:02]}
19... Qc4 {[%clk 0:02:12]} 20. Qh4 {[%clk 0:01:43.7]} 20... Qxa2 {[%clk
0:01:46.3]} 21. Rbe1 {[%clk 0:01:43.2]} 21... Qd2 {[%clk 0:01:06.9]} 22. Rf3
{[%clk 0:01:35.7]} 22... f5 {[%clk 0:00:53.8]} 23. exf6 {[%clk 0:01:29.4]} 23...
Rf7 {[%clk 0:00:53.6]} 24. Ref1 {[%clk 0:01:08.5]} 24... Rc4 {[%clk 0:00:48.8]}
25. Be5 {[%clk 0:01:05.1]} 25... Re4 {[%clk 0:00:43.3]} 26. Qg5 {[%clk
0:01:04.1]} 26... Re1 {[%clk 0:00:32.8]} 27. h4 {[%clk 0:00:51.7]} 27... Bb5
{[%clk 0:00:32.8]} 28. Rxe1 {[%clk 0:00:49.8]} 28... Qxe1+ {[%clk 0:00:32.5]}
29. Kh2 {[%clk 0:00:50.4]} 29... Qe4 {[%clk 0:00:19.9]} 30. Rg3 {[%clk
0:00:41.5]} 30... Qf5 {[%clk 0:00:14.3]} 31. Qxf5 {[%clk 0:00:38.4]} 31... exf5
{[%clk 0:00:13.9]} 32. h5 {[%clk 0:00:39]} 32... Be8 {[%clk 0:00:06.5]} 33. hxg6
{[%clk 0:00:38.8]} 33... hxg6 {[%clk 0:00:07.4]} 34. Rd3 {[%clk 0:00:28]} 34...
Bc6 {[%clk 0:00:06.5]} 35. Kg3 {[%clk 0:00:27.6]} 35... Rh7 {[%clk 0:00:05.5]}
36. c4 {[%clk 0:00:22.2]} 36... dxc4 {[%clk 0:00:04]} 37. Rd8+ {[%clk 0:00:22]}
37... Kf7 {[%clk 0:00:04.4]} 38. Rc8 {[%clk 0:00:20.2]} 38... Ke6 {[%clk
0:00:04.3]} 39. Rg8 {[%clk 0:00:14.2]} 39... Kf7 {[%clk 0:00:04.2]} 40. Rg7+
{[%clk 0:00:08.8]} 40... Rxg7 {[%clk 0:00:04.4]} 41. fxg7 {[%clk 0:00:09.7]}
41... Kg8 {[%clk 0:00:02.3]} 42. Kf2 {[%clk 0:00:09.8]} 42... b6 {[%clk
0:00:01.2]} 43. g3 {[%clk 0:00:10.3]} 43... a5 {[%clk 0:00:01.5]} 44. bxa5
{[%clk 0:00:08.3]} 44... bxa5 {[%clk 0:00:02.4]} 45. Bc3 {[%clk 0:00:06.6]}
45... a4 {[%clk 0:00:02.4]} 46. Ke3 {[%clk 0:00:07.2]} 46... Bd5 {[%clk
0:00:02.4]} 47. Kd4 {[%clk 0:00:07.5]} 47... Bf7 {[%clk 0:00:02.9]} 48. Kc5
{[%clk 0:00:06.5]} 48... Kh7 {[%clk 0:00:03.5]} 49. Kb4 {[%clk 0:00:06.2]} 49...
Kh6 {[%clk 0:00:04.2]} 50. Kxa4 {[%clk 0:00:06.1]} 50... Kh5 {[%clk 0:00:04.9]}
51. Kb4 {[%clk 0:00:04.6]} 51... Kg4 {[%clk 0:00:05.6]} 52. Be1 {[%clk
0:00:04.2]} 52... Kf3 {[%clk 0:00:06.5]} 53. Kc3 {[%clk 0:00:04.3]} 53... Ke2
{[%clk 0:00:07.4]} 54. Bd2 {[%clk 0:00:03.8]} 54... Kf2 {[%clk 0:00:08.2]} 55.
Kd4 {[%clk 0:00:02.1]} 55... Kxg3 {[%clk 0:00:08.4]} 56. Bc3 {[%clk 0:00:02.1]}
56... Kxf4 {[%clk 0:00:08.5]} 57. Kc5 {[%clk 0:00:02.6]} 57... Kg5 {[%clk
0:00:08.1]} 58. Kd6 {[%clk 0:00:02.7]} 58... Kh6 {[%clk 0:00:08.5]} 59. Ke7
{[%clk 0:00:03.1]} 59... Bd5 {[%clk 0:00:08.2]} 60. Kf8 {[%clk 0:00:03.2]} 60...
Kh7 {[%clk 0:00:08.4]} 61. Be5 {[%clk 0:00:01.8]} 61... g5 {[%clk 0:00:08.1]}
62. Ke7 {[%clk 0:00:01.7]} 62... f4 {[%clk 0:00:08.2]} 63. Kf6 {[%clk
0:00:01.7]} 63... f3 {[%clk 0:00:08.6]} 0-1

[Event "Early-Titled-Tuesday-Blitz-March-05-2024"]
[Site "Chess.com"]
[Date "2024.03.05"]
[Round "9"]
[White "goldihouse"]
[Black "esrosenberg"]
[Result "1-0"]
[WhiteElo "2643"]
[BlackElo "2455"]
[TimeControl "180+1"]
[EndTime "9:48:01 PST"]
[Termination "goldihouse won by resignation"]

1. c4 {[%clk 0:03:00.2]} 1... e6 {[%clk 0:02:45.6]} 2. g3 {[%clk 0:02:59.7]}
2... d5 {[%clk 0:02:45.5]} 3. Bg2 {[%clk 0:03:00.6]} 3... d4 {[%clk 0:02:45.9]}
4. Nf3 {[%clk 0:03:00.5]} 4... Nc6 {[%clk 0:02:45.5]} 5. O-O {[%clk 0:03:00.1]}
5... e5 {[%clk 0:02:41.7]} 6. d3 {[%clk 0:02:58.4]} 6... Be7 {[%clk 0:02:38.4]}
7. e3 {[%clk 0:02:57.6]} 7... Nf6 {[%clk 0:02:33.6]} 8. exd4 {[%clk 0:02:57]}
8... exd4 {[%clk 0:02:33.8]} 9. Na3 {[%clk 0:02:52.1]} 9... O-O {[%clk
0:02:31.3]} 10. Bf4 {[%clk 0:02:51.7]} 10... a6 {[%clk 0:02:30.4]} 11. Re1
{[%clk 0:02:47.1]} 11... h6 {[%clk 0:02:24.5]} 12. Ne5 {[%clk 0:02:42.3]} 12...
Nxe5 {[%clk 0:02:21.9]} 13. Bxe5 {[%clk 0:02:43.2]} 13... Bf5 {[%clk 0:02:01.5]}
14. Nc2 {[%clk 0:02:37.2]} 14... c5 {[%clk 0:02:00.8]} 15. Bxb7 {[%clk
0:02:35.1]} 15... Ra7 {[%clk 0:01:47.5]} 16. Bg2 {[%clk 0:02:34.2]} 16... Qd7
{[%clk 0:01:45.5]} 17. Rb1 {[%clk 0:02:22]} 17... Ng4 {[%clk 0:01:30.1]} 18. Bf4
{[%clk 0:02:19.1]} 18... g5 {[%clk 0:01:30.1]} 19. Bc1 {[%clk 0:02:18.9]} 19...
Bg6 {[%clk 0:01:13.4]} 20. Be4 {[%clk 0:01:57.8]} 20... f5 {[%clk 0:01:01.6]}
21. Bd5+ {[%clk 0:01:56.4]} 21... Kg7 {[%clk 0:01:02.2]} 22. f4 {[%clk
0:01:21.8]} 22... Nf6 {[%clk 0:00:59.5]} 23. Bf3 {[%clk 0:01:20.1]} 23... g4
{[%clk 0:00:57.3]} 24. Bg2 {[%clk 0:01:19.3]} 24... h5 {[%clk 0:00:57.9]} 25.
Bd2 {[%clk 0:01:15.6]} 25... h4 {[%clk 0:00:58.1]} 26. b4 {[%clk 0:01:14.1]}
26... hxg3 {[%clk 0:00:58]} 27. hxg3 {[%clk 0:01:14]} 27... Rh8 {[%clk
0:00:56.1]} 28. Qe2 {[%clk 0:01:02.6]} 28... Bf7 {[%clk 0:00:37.1]} 29. bxc5
{[%clk 0:00:56.3]} 29... Bxc5 {[%clk 0:00:34.9]} 30. Qe5 {[%clk 0:00:50.8]}
30... Be7 {[%clk 0:00:34.7]} 31. Bb4 {[%clk 0:00:39.5]} 31... Bxb4 {[%clk
0:00:31.6]} 32. Rxb4 {[%clk 0:00:40.4]} 32... Re8 {[%clk 0:00:28.2]} 33. Qa5
{[%clk 0:00:37.6]} 33... Rxe1+ {[%clk 0:00:27.1]} 34. Nxe1 {[%clk 0:00:38.5]}
34... Qe7 {[%clk 0:00:23.4]} 35. Nc2 {[%clk 0:00:20.6]} 35... Qe2 {[%clk
0:00:23.3]} 36. Rb2 {[%clk 0:00:19.2]} 36... Qxd3 {[%clk 0:00:21.3]} 37. Qe5
{[%clk 0:00:18.7]} 37... Bxc4 {[%clk 0:00:15.2]} 38. Qxd4 {[%clk 0:00:18.1]}
38... Rd7 {[%clk 0:00:10.6]} 39. Qxd3 {[%clk 0:00:16.3]} 39... Rxd3 {[%clk
0:00:10.4]} 40. Kf2 {[%clk 0:00:15.1]} 40... Rd2+ {[%clk 0:00:09.9]} 41. Kg1
{[%clk 0:00:15.3]} 41... Ne4 {[%clk 0:00:07.6]} 42. Rb7+ {[%clk 0:00:13.7]}
42... Kg6 {[%clk 0:00:06.8]} 43. Ne3 {[%clk 0:00:14.6]} 43... Be2 {[%clk
0:00:04]} 44. Rb6+ {[%clk 0:00:14.8]} 44... Kf7 {[%clk 0:00:03.8]} 45. Nxf5
{[%clk 0:00:14]} 45... Bf3 {[%clk 0:00:04.4]} 46. Nh4 {[%clk 0:00:10.5]} 46...
Rd1+ {[%clk 0:00:04.2]} 47. Kh2 {[%clk 0:00:10.8]} 47... Rd2 {[%clk 0:00:04.5]}
48. Rb7+ {[%clk 0:00:08.8]} 48... Kf6 {[%clk 0:00:03.5]} 49. Rb6+ {[%clk
0:00:08.5]} 49... Kf7 {[%clk 0:00:03.8]} 50. Rxa6 {[%clk 0:00:09.4]} 50... Bxg2
{[%clk 0:00:02.4]} 51. Nxg2 {[%clk 0:00:09.6]} 51... Nc3 {[%clk 0:00:01.9]} 52.
Kg1 {[%clk 0:00:07.5]} 52... Nxa2 {[%clk 0:00:02.1]} 53. Ne3 {[%clk 0:00:06.1]}
53... Nc3 {[%clk 0:00:02.3]} 54. Nxg4 {[%clk 0:00:06.5]} 54... Ne2+ {[%clk
0:00:02.9]} 55. Kf2 {[%clk 0:00:06.8]} 55... Nxf4+ {[%clk 0:00:03.2]} 56. Ke3
{[%clk 0:00:07.2]} 56... Rd3+ {[%clk 0:00:02.1]} 57. Kxf4 {[%clk 0:00:07.3]}
57... Rd4+ {[%clk 0:00:03]} 58. Kg5 {[%clk 0:00:07.6]} 58... Rd5+ {[%clk
0:00:02.5]} 59. Kf4 {[%clk 0:00:07.9]} 59... Rd4+ {[%clk 0:00:02.9]} 60. Kf5
{[%clk 0:00:08.3]} 60... Rd5+ {[%clk 0:00:03.2]} 61. Ne5+ {[%clk 0:00:08.6]}
61... Ke7 {[%clk 0:00:03.7]} 62. g4 {[%clk 0:00:09.5]} 62... Rd1 {[%clk
0:00:03.1]} 63. Ra7+ {[%clk 0:00:08.5]} 63... Ke8 {[%clk 0:00:03.6]} 64. Ke6
{[%clk 0:00:08.1]} 64... Kd8 {[%clk 0:00:03.3]} 65. g5 {[%clk 0:00:06.9]} 65...
Kc8 {[%clk 0:00:02.9]} 66. g6 {[%clk 0:00:06.6]} 66... Kb8 {[%clk 0:00:03.4]}
67. Rf7 {[%clk 0:00:05.6]} 67... Rg1 {[%clk 0:00:03.1]} 68. g7 {[%clk
0:00:06.1]} 68... Kc8 {[%clk 0:00:03.2]} 69. Rf8+ {[%clk 0:00:06.3]} 69... Kc7
{[%clk 0:00:03.4]} 70. g8=Q {[%clk 0:00:07.2]} 70... Rxg8 {[%clk 0:00:03.3]} 71.
Rxg8 {[%clk 0:00:08.1]} 1-0